bitfinex/quotes_ETHUSD_20240711
["timestamp","ask_amount","ask_price","bid_price","bid_amount"]
[1720710027511,0.93852186,3159.3,3158.7,3.16584]
[1720710027710,2.3981,3159.5,3158.7,3.16584]
[1720710028206,0.98524289,3160.1,3158.4,2.38]
[1720710028207,5.64294,3159.9,3158.8,3.16574]
[1720710028426,5.64294,3159.9,3158.9,3.16565]
[1720710028703,0.07912901,3159.8,3159.0,3.16549]
[1720710028915,0.2557329,3159.7,3159.0,3.16549]
[1720710029065,0.07912901,3159.8,3158.8,3.16574]
[1720710029264,0.07913151,3159.7,3158.6,6.33177]
[1720710029493,3.24405151,3159.7,3158.5,3.16598]
[1720710029714,3.16511,3159.5,3158.6,0.05919473]
[1720710029916,3.24425116,3159.5,3158.6,0.05919473]
[1720710030200,0.32442512,3159.4,3158.6,0.05919473]
[1720710030373,3.16551,3159.1,3158.0,9.7534]
[1720710030581,2.3153,3159.3,3158.4,3.16615]
[1720710030783,2.3153,3159.3,3158.5,0.05922507]
[1720710030973,5.48061,3159.3,3158.5,0.05922507]
[1720710031177,0.58050351,3159.2,3158.5,0.05922507]
[1720710031504,0.58050351,3159.2,3158.1,3.16643]
[1720710031505,3.16552,3159.1,3158.1,3.16643]
[1720710031709,3.16556,3159.0,3158.6,0.05919473]
[1720710032001,0.58050351,3159.2,3158.6,0.05919473]
[1720710032002,6.91130351,3159.2,3158.6,0.05919473]
[1720710032205,6.91130351,3159.2,3158.1,6.33278]
[1720710032206,3.16547,3159.1,3158.1,6.33278]
[1720710032400,4.16728526,3159.1,3158.2,0.05931608]
[1720710032603,4.08813335,3159.1,3158.2,0.05931608]
[1720710032780,4.08813335,3159.1,3158.2,3.22564608]
[1720710033101,0.92266335,3159.1,3158.4,3.16615]
[1720710033633,0.92266335,3159.1,3158.5,0.05922507]
[1720710034312,0.58050351,3159.2,3158.5,3.22520507]
[1720710034613,6.33045,3159.4,3158.5,3.22520507]
[1720710034774,3.16529,3159.3,3158.5,0.05922507]
[1720710034976,3.16529,3159.3,3158.3,3.16617]
[1720710035179,3.16529,3159.3,3158.4,3.2253254]
[1720710035783,3.16529,3159.3,3158.1,3.832618]
[1720710035784,3.16536,3159.2,3158.1,6.998998]
[1720710036005,5.52696,3159.0,3158.0,7.29]
[1720710036198,0.07915192,3158.9,3158.0,10.45655]
[1720710037419,3.24482192,3158.9,3158.0,10.45655]
[1720710038335,3.24482192,3158.9,3158.0,7.29]
[1720710038936,2.3614,3159.0,3158.1,3.16644]
[1720710039089,2.4644,3159.4,3158.5,3.16605]
[1720710039584,3.16529,3159.3,3158.5,3.16605]
[1720710039788,3.16529,3159.3,3158.2,6.752599]
[1720710039789,6.33062,3159.3,3158.2,6.752599]
[1720710039988,3.16536,3159.2,3158.2,6.752579]
[1720710040300,3.16536,3159.2,3158.0,7.29]
[1720710040301,3.16566,3158.9,3158.0,7.29]
[1720710040627,0.0791519,3158.8,3158.0,10.4565]
[1720710040840,2.3225,3158.7,3157.6,9.5542]
[1720710041022,3.16602,3158.6,3157.7,3.1668]
[1720710041239,3.16602,3158.6,3157.8,0.05923117]
[1720710041532,3.16623,3158.4,3157.8,0.05923117]
[1720710041934,0.07916589,3158.3,3157.4,6.3171]
[1720710042143,0.865428,3158.6,3157.6,3.16693]
[1720710042339,3.16598,3158.6,3157.6,3.16693]
[1720710042548,1.09649177,3158.5,3157.7,0.05188391]
[1720710042744,3.16612,3158.5,3157.7,0.05188391]
[1720710042920,2.3225,3158.7,3157.7,3.21864391]
[1720710043112,5.48841,3158.7,3157.8,3.16666]
[1720710043312,9.519759,3158.7,3157.7,3.21864391]
[1720710043518,1.09640331,3158.6,3157.9,0.0592352]
[1720710043738,4.26246331,3158.5,3157.8,0.05926555]
[1720710043944,4.26262331,3158.4,3158.0,0.05920485]
[1720710044143,3.16622,3158.4,3157.9,0.0518308]
[1720710044436,1.09649669,3158.3,3158.0,0.05180425]
[1720710044740,3.8786136,3158.4,3158.0,0.05180425]
[1720710044957,1.09649819,3158.3,3157.5,7.29]
[1720710045239,1.09649819,3158.2,3157.5,10.45704]
[1720710045402,1.09649819,3158.2,3157.6,0.05191047]
[1720710045605,1.09649819,3158.1,3157.6,4.58474852]
[1720710045843,1.09649819,3158.3,3157.6,3.21886047]
[1720710046143,1.09651146,3158.2,3157.6,0.05191047]
[1720710046354,1.09651146,3158.1,3157.6,0.05191047]
[1720710046659,1.09651146,3158.2,3157.6,0.05191047]
[1720710046850,1.09651146,3158.1,3157.6,3.21886047]
[1720710047153,3.16607,3158.5,3157.7,1.36758605]
[1720710047354,1.09646898,3158.4,3157.7,1.36758605]
[1720710047518,1.09646898,3158.3,3157.8,0.04640099]
[1720710047860,2.3395,3158.1,3157.5,7.29]
[1720710048026,0.07917318,3158.0,3157.9,0.04637357]
[1720710048216,0.07917318,3158.0,3157.5,7.29]
[1720710048217,4.26316411,3158.0,3157.5,7.29]
[1720710048548,1.09654411,3157.9,3157.6,0.04644438]
[1720710048958,4.26310411,3158.0,3157.6,0.04644438]
[1720710049256,1.09654411,3157.9,3157.6,0.04644438]
[1720710049457,5.24012052,3157.9,3157.6,0.04644438]
[1720710049664,1.17572057,3157.8,3157.6,0.04644438]
[1720710049819,4.34258291,3157.7,3157.6,0.04644438]
[1720710050017,4.26340411,3157.7,3157.5,7.29]
[1720710050257,1.09654411,3157.6,3157.5,7.29]
[1720710051334,1.09654411,3157.6,3156.8,5.53789]
[1720710051335,0.43425837,3157.6,3156.8,7.29]
[1720710051666,3.16726,3157.3,3156.5,0.633632]
[1720710051814,1.17609291,3157.2,3156.5,0.633632]
[1720710052018,1.09690063,3157.1,3156.5,0.633632]
[1720710052764,1.09690063,3157.1,3156.6,0.04668053]
[1720710053128,2.2572,3157.4,3156.6,1.16052078]
[1720710053424,2.3621,3157.7,3156.7,5.55394]
[1720710053623,1.09679924,3157.6,3156.8,3.21437329]
[1720710053859,5.52897,3157.7,3156.8,3.21437329]
[1720710054021,1.09676457,3157.6,3156.8,3.21437329]
[1720710054223,1.09680707,3157.5,3156.8,4.20259964]
[1720710054456,2.3621,3157.7,3156.8,4.20259964]
[1720710054649,2.3621,3157.7,3156.8,7.37029964]
[1720710054823,1.09675908,3157.6,3156.8,4.20255964]
[1720710055165,1.09675908,3157.5,3156.8,4.20255964]
[1720710055333,1.09675908,3157.6,3156.9,3.82649596]
[1720710055520,3.82238285,3158.0,3156.9,3.82649596]
[1720710055719,1.09673138,3157.9,3157.0,0.04658605]
[1720710055922,1.09673138,3157.8,3157.0,0.04658605]
[1720710056271,1.09672382,3157.7,3157.0,0.04658605]
[1720710056553,3.82238285,3158.0,3157.0,0.04658605]
[1720710056554,4.54894557,3158.0,3157.0,0.04658605]
[1720710056843,4.26338251,3157.9,3157.0,0.04658605]
[1720710057049,1.09670251,3157.8,3157.0,3.21414605]
[1720710057446,1.09670251,3157.9,3157.0,3.21414605]
[1720710057623,1.09670251,3157.8,3157.0,4.01703989]
[1720710058771,1.75246536,3157.8,3157.0,4.01703989]
[1720710058969,1.09670251,3157.7,3157.0,0.84947989]
[1720710059273,0.65576285,3158.1,3157.2,6.33458]
[1720710059422,1.09666422,3158.0,3157.2,6.33458]
[1720710059624,0.65576285,3158.2,3157.4,3.1671]
[1720710059844,0.65576285,3158.2,3157.3,0.04204594]
[1720710059845,4.9189189,3158.1,3157.5,0.04200344]
[1720710060073,3.16696,3157.6,3157.5,0.04200344]
[1720710060281,3.16709,3157.5,3157.0,7.29]
[1720710060485,1.83316034,3157.4,3157.0,7.29]
[1720710060652,3.82466374,3157.3,3156.4,7.29]
[1720710060977,1.83345435,3157.2,3156.4,7.29]
[1720710061158,1.0969406,3157.1,3156.4,10.45816]
[1720710061362,0.65731757,3157.1,3156.4,10.45816]
[1720710061673,0.65731757,3157.2,3156.4,10.45816]
[1720710061878,0.65731757,3157.3,3156.6,3.1679]
[1720710062052,0.65731757,3157.5,3156.6,3.16789]
[1720710062247,0.65731757,3157.7,3156.5,2.224]
[1720710062580,4.92105413,3157.6,3156.6,3.16791]
[1720710062736,1.09672656,3157.5,3156.6,3.1679]
[1720710062937,0.50002439,3157.4,3156.6,3.1679]
[1720710063249,0.50002439,3157.4,3156.7,3.16785]
[1720710063459,0.65731757,3157.5,3156.7,3.16785]
[1720710063636,0.65731757,3157.6,3156.7,3.16785]
[1720710063949,2.19356683,3157.5,3156.7,3.16785]
[1720710064159,1.09678352,3157.4,3156.7,3.16785]
[1720710064337,1.09678331,3157.5,3156.7,3.16785]
[1720710064685,1.09683739,3157.4,3156.9,3.16765]
[1720710064988,1.09678331,3157.5,3156.9,3.16765]
[1720710065367,1.09680038,3157.4,3156.9,3.16765]
[1720710065550,1.09678331,3157.5,3156.9,3.16765]
[1720710065751,1.09680033,3157.4,3156.7,3.16786]
[1720710065986,1.75410088,3157.5,3156.7,3.16786]
[1720710066295,1.09681642,3157.4,3156.5,3.16797]
[1720710066464,1.17600642,3157.3,3156.5,3.16797]
[1720710066670,5.2030969,3157.5,3156.5,3.16797]
[1720710066865,1.09682125,3157.4,3156.5,3.16797]
[1720710067071,1.09682125,3157.3,3156.5,3.16797]
[1720710067272,0.0791897,3157.2,3156.4,7.29]
[1720710067478,0.0791897,3157.2,3156.0,3.16]
[1720710067479,6.70029798,3157.1,3155.9,12.76569]
[1720710067696,5.0010566,3157.0,3156.5,0.03860639]
[1720710068013,3.16792,3156.7,3156.6,0.03858707]
[1720710068226,3.16792,3156.7,3155.4,7.29]
[1720710068227,4.47870522,3156.7,3155.4,7.29]
[1720710068429,4.47870522,3156.7,3155.5,0.03556643]
[1720710068430,3.16842,3156.2,3155.5,0.03556643]
[1720710068579,3.16842,3156.2,3155.2,3.16936]
[1720710068580,1.75433358,3156.1,3155.2,3.16936]
[1720710068780,4.23362149,3156.2,3155.2,3.16936]
[1720710068781,1.75433358,3156.0,3155.2,3.16936]
[1720710069009,1.1761431,3155.9,3155.2,3.16936]
[1720710069222,1.09691798,3155.8,3155.2,3.16936]
[1720710069380,0.07922512,3155.9,3155.2,3.16936]
[1720710069381,0.59879551,3156.0,3155.2,3.16936]
[1720710069926,0.67802061,3156.0,3155.0,3.16949]
[1720710070415,0.67802061,3156.0,3155.1,3.16943]
[1720710070579,0.59879551,3156.0,3155.2,3.16936]
[1720710070780,2.3166,3156.7,3155.8,3.16867]
[1720710071092,1.09717654,3156.6,3156.0,3.16855]
[1720710071333,2.3564,3157.1,3156.1,3.16845]
[1720710071479,1.09702479,3157.0,3156.2,3.16836]
[1720710071681,1.09702479,3156.9,3156.2,3.16836]
[1720710071883,1.17622397,3156.8,3155.3,7.29]
[1720710072078,3.16817,3156.4,3155.4,3.1691]
[1720710072302,3.2473908,3156.4,3155.3,7.29]
[1720710072497,3.36503837,3156.3,3155.3,7.29]
[1720710072699,1.17645918,3156.2,3155.3,10.45926]
[1720710072909,0.34442592,3156.1,3155.3,7.29]
[1720710073827,1.09734892,3156.0,3155.3,7.29]
[1720710074024,0.34442592,3156.1,3155.1,3.16946]
[1720710074709,0.34442592,3156.1,3155.2,3.16936]
[1720710074890,2.2678,3156.3,3155.3,3.16917]
[1720710075111,2.2678,3156.3,3155.5,3.169]
[1720710075317,0.65633598,3156.6,3155.7,3.16883]
[1720710075529,1.0971891,3156.5,3155.9,3.16863]
[1720710075821,2.3662,3156.8,3155.9,3.16863]
[1720710076023,1.09711076,3156.7,3155.9,3.16863]
[1720710076180,3.01975485,3156.8,3155.7,3.16883]
[1720710076498,1.09709375,3156.7,3155.7,3.16883]
[1720710076828,1.09712866,3156.6,3155.7,3.16883]
[1720710077003,3.01975485,3156.8,3155.9,3.16864]
[1720710077394,1.75032957,3156.7,3155.9,3.16864]
[1720710077727,1.09705284,3156.6,3155.9,3.16864]
[1720710078033,2.3662,3156.8,3155.9,3.16864]
[1720710078181,1.09705526,3156.7,3156.1,3.16845]
[1720710078383,2.40752024,3157.5,3156.6,3.16796]
[1720710078384,1.09678331,3157.5,3156.6,3.16796]
[1720710078685,1.09687671,3157.4,3156.6,3.16796]
[1720710078881,1.09687671,3157.3,3156.6,3.16796]
[1720710079225,1.09678331,3157.5,3156.8,3.16768]
[1720710079523,1.09681963,3157.4,3156.8,3.16768]
[1720710079689,1.09681963,3157.4,3156.9,3.16765]
[1720710080033,2.489,3157.7,3156.9,3.16765]
[1720710080185,1.34571061,3157.6,3156.9,3.16765]
[1720710080530,1.09681061,3157.5,3156.9,3.16765]
[1720710081204,1.09681061,3157.5,3156.7,3.16778]
[1720710082183,1.09681061,3157.5,3156.5,3.16798]
[1720710082384,1.09681061,3157.5,3156.6,3.16794]
[1720710082646,2.17920852,3157.5,3156.6,3.16794]
[1720710082821,1.09681061,3157.4,3156.6,3.16794]
[1720710083021,1.08239791,3157.5,3156.6,3.16794]
[1720710083223,1.09682466,3157.4,3156.6,3.16794]
[1720710083397,1.09682466,3157.3,3156.6,3.16794]
[1720710083581,1.08239791,3157.5,3156.6,3.16794]
[1720710083782,1.61228192,3157.4,3156.6,3.16794]
[1720710084024,1.09682992,3157.3,3156.6,3.16794]
[1720710084186,0.515452,3157.4,3156.7,3.16786]
[1720710084395,3.14518207,3157.7,3156.8,3.16768]
[1720710084609,0.98427311,3157.8,3156.9,3.16761]
[1720710084610,1.096802,3157.6,3156.9,3.16761]
[1720710084793,0.65618207,3158.0,3157.1,3.1674]
[1720710084994,1.09665742,3157.9,3157.1,6.33478]
[1720710085197,1.09665742,3157.8,3157.2,3.16736]
[1720710085504,0.65618207,3158.2,3157.4,3.16712]
[1720710085715,1.75277882,3158.1,3157.4,3.16712]
[1720710085892,3.40657311,3158.3,3157.4,3.16712]
[1720710085893,0.65618207,3158.2,3157.4,3.16712]
[1720710086094,1.0965573,3158.1,3157.4,3.16712]
[1720710086411,1.0965573,3158.0,3157.2,3.16728]
[1720710086590,1.0965573,3158.0,3157.4,3.16716]
[1720710086993,1.0965573,3158.0,3157.5,3.16705]
[1720710087240,1.0965573,3158.1,3157.6,3.16694]
[1720710087393,0.65618207,3158.2,3157.6,3.16694]
[1720710087717,1.09656506,3158.1,3157.3,3.16721]
[1720710087919,0.92988409,3158.1,3157.5,3.167]
[1720710088104,0.27370202,3158.1,3157.5,3.167]
[1720710088508,0.65618207,3158.1,3157.2,3.1673]
[1720710088816,0.65618207,3158.0,3157.2,3.1673]
[1720710089123,0.65618207,3157.8,3157.0,3.16751]
[1720710089331,0.65618207,3157.8,3157.0,3.16749]
[1720710089536,0.65618207,3157.8,3157.1,3.16745]
[1720710089903,0.65618207,3157.9,3156.9,3.16766]
[1720710090104,2.14880438,3157.8,3156.9,3.16766]
[1720710090339,0.65618207,3157.6,3156.8,7.29]
[1720710090494,0.65618207,3157.5,3156.8,7.29]
[1720710090692,0.65618207,3157.4,3156.7,3.1678]
[1720710091426,0.65618207,3157.4,3156.8,3.16775]
[1720710091736,3.16697,3157.6,3157.1,3.16745]
[1720710091737,0.65618207,3157.6,3157.1,3.16745]
[1720710091895,0.65618207,3157.7,3157.0,3.16749]
[1720710092341,0.98427311,3157.8,3157.1,3.16744]
[1720710092342,0.65618207,3157.8,3157.1,3.16744]
[1720710092492,0.82022759,3157.7,3156.9,3.16757]
[1720710092694,0.82022759,3157.7,3156.8,3.16774]
[1720710092902,0.65664545,3157.6,3156.8,3.1677]
[1720710093312,0.65661606,3157.6,3156.8,3.1677]
[1720710093532,0.65661606,3157.6,3156.9,3.16758]
[1720710093739,0.83717463,3157.6,3156.6,3.16794]
[1720710093901,0.65661606,3157.5,3156.7,3.16785]
[1720710094434,0.65661606,3157.3,3156.5,6.33602]
[1720710094735,0.65661606,3157.2,3156.6,3.16789]
[1720710095043,0.65661606,3157.3,3156.6,3.16789]
[1720710095239,0.65661606,3157.3,3156.5,3.16798]
[1720710095240,0.82077007,3157.3,3156.7,3.16784]
[1720710095452,0.82077007,3157.3,3156.6,3.16796]
[1720710095597,0.82077007,3157.3,3156.4,7.29]
[1720710095940,2.4988,3157.2,3156.4,7.29]
[1720710096143,0.65661606,3157.0,3156.4,7.29]
[1720710096470,0.65661606,3157.0,3155.8,12.12]
[1720710096471,0.65661606,3156.6,3156.0,7.29]
[1720710096650,0.65653134,3156.3,3156.0,7.29]
[1720710096803,0.98492409,3156.3,3156.0,7.29]
[1720710097003,3.02786997,3156.4,3156.0,7.29]
[1720710097312,0.65656997,3156.4,3156.0,7.29]
[1720710097746,0.98492409,3156.6,3156.0,10.45856]
[1720710097747,0.65656997,3156.6,3156.0,10.45856]
[1720710097934,1.64115284,3157.0,3156.0,10.45856]
[1720710097935,0.65656997,3156.8,3156.2,4.434156]
[1720710098134,0.98492409,3157.0,3156.2,4.434156]
[1720710098135,0.65656997,3157.0,3156.2,4.434156]
[1720710098297,0.65656997,3156.9,3156.2,4.434156]
[1720710098502,0.35656997,3157.0,3156.2,4.434156]
[1720710099139,0.35656997,3157.0,3156.4,3.16807]
[1720710099339,0.35656997,3157.0,3156.5,3.484817]
[1720710100102,0.35656997,3157.0,3156.5,0.316807]
[1720710100344,0.98492409,3157.1,3156.2,3.36832]
[1720710100527,2.08185804,3157.0,3156.2,0.2]
[1720710100735,0.98492409,3156.8,3156.2,0.2]
[1720710101041,0.98492409,3156.7,3156.2,0.2]
[1720710102505,2.4973,3156.9,3156.2,0.2]
[1720710102780,2.08148306,3156.8,3156.2,1.265846]
[1720710103051,3.80991837,3156.9,3156.2,1.265846]
[1720710103052,2.4973,3156.9,3156.2,1.265846]
[1720710103218,2.08168886,3156.8,3156.2,1.265846]
[1720710103429,0.98468096,3156.8,3156.2,4.434146]
[1720710103802,1.09700726,3156.7,3156.2,4.434146]
[1720710104034,0.98468096,3156.8,3156.3,0.7602606]
[1720710104346,1.09699615,3156.7,3156.3,0.7602606]
[1720710104544,0.98468096,3156.9,3156.3,0.7602606]
[1720710104714,0.98468096,3157.1,3156.5,3.16799]
[1720710104903,1.09689635,3157.0,3156.5,3.16799]
[1720710105261,0.98468096,3157.1,3156.5,3.16799]
[1720710105549,1.09688886,3157.0,3156.6,3.16796]
[1720710105842,0.98468096,3157.2,3156.6,3.801555]
[1720710106046,1.09689507,3157.1,3156.6,3.801555]
[1720710106352,1.09689507,3157.0,3156.6,3.801555]
[1720710106739,1.09689507,3157.0,3156.6,3.16796]
[1720710106933,1.09689507,3157.0,3156.3,3.1682]
[1720710106934,1.09689507,3157.0,3156.4,3.16807]
[1720710107107,2.08157603,3157.0,3156.4,3.16807]
[1720710107313,1.09689507,3156.9,3156.4,3.16807]
[1720710107716,1.09689507,3156.9,3156.5,3.16804]
[1720710108046,2.08157603,3156.9,3156.3,3.16816]
[1720710108253,1.09689507,3156.8,3156.2,0.2]
[1720710108418,2.08157603,3156.8,3156.2,3.3683]
[1720710108628,0.65760656,3156.6,3156.2,0.2]
[1720710108806,1.09689507,3156.7,3156.2,0.2]
[1720710108807,0.65760656,3156.7,3156.2,0.2]
[1720710109234,1.13860131,3156.7,3156.2,0.2]
[1720710109471,0.65760656,3156.5,3156.2,0.2]
[1720710109641,0.65760656,3156.5,3156.0,7.29]
[1720710109970,0.65760656,3156.5,3156.0,10.45856]
[1720710110172,1.754678,3156.4,3156.0,7.29]
[1720710110396,0.65760656,3156.4,3156.0,7.29]
[1720710110864,0.11474152,3156.6,3156.0,7.29]
[1720710111044,0.11474152,3156.6,3156.0,10.45856]
[1720710111045,1.09707312,3156.5,3156.0,10.45856]
[1720710111250,0.11474152,3156.6,3156.0,10.45856]
[1720710111454,1.0970601,3156.5,3156.0,7.29]
[1720710111671,0.11474152,3156.6,3156.0,7.29]
[1720710111850,1.09705991,3156.5,3156.0,10.45855]
[1720710112178,0.11474152,3156.6,3156.0,10.45855]
[1720710112347,1.09705975,3156.5,3156.0,10.45855]
[1720710112549,0.48099475,3156.7,3156.0,10.45855]
[1720710112880,3.16742,3157.2,3156.0,13.6271]
[1720710113052,1.31574028,3156.9,3156.0,10.45855]
[1720710113235,1.0970214,3156.8,3156.0,3.16855]
[1720710113572,1.0970214,3156.7,3156.0,3.16855]
[1720710113963,1.0970214,3156.7,3156.0,6.33705]
[1720710114161,1.0970214,3156.7,3156.0,3.1685]
[1720710114338,1.0970214,3156.7,3156.0,6.970712]
[1720710114544,1.31574028,3156.8,3156.0,3.802212]
[1720710114837,1.09706516,3156.7,3156.0,3.16849]
[1720710115040,1.09706516,3156.6,3156.0,3.16849]
[1720710115244,1.31476885,3156.8,3156.0,3.16849]
[1720710115565,1.09702522,3156.7,3156.0,6.33697]
[1720710115769,1.09700712,3156.6,3156.0,3.16848]
[1720710115969,1.09700682,3156.6,3156.2,3.16835]
[1720710116284,1.31476885,3157.1,3156.2,3.16835]
[1720710116445,1.09689305,3157.0,3156.2,3.16835]
[1720710116638,1.09689305,3156.9,3156.2,3.1683]
[1720710116840,1.09689305,3157.0,3156.5,3.16801]
[1720710117141,1.31476885,3157.2,3156.6,0.63361]
[1720710117341,1.0968538,3157.1,3156.6,0.63361]
[1720710117541,1.0968538,3157.0,3156.6,0.63361]
[1720710117797,2.41162265,3157.1,3156.6,0.63361]
[1720710118074,1.0968538,3157.0,3156.6,0.63361]
[1720710118278,1.0968538,3157.0,3156.3,4.6865]
[1720710118576,1.0968538,3157.0,3156.4,3.16811]
[1720710119077,1.31476885,3157.1,3156.4,3.16809]
[1720710119280,1.09691301,3157.0,3156.4,3.16809]
[1720710119475,2.41168186,3157.0,3156.4,3.16809]
[1720710119639,1.09691301,3156.9,3156.4,3.16809]
[1720710119841,0.98653382,3156.8,3156.4,3.80173]
[1720710120148,1.09691301,3156.7,3156.4,0.63364]
[1720710120337,2.08344683,3156.7,3156.2,3.16831]
[1720710120539,1.09691301,3156.6,3156.1,0.316848]
[1720710120755,1.7546291,3156.6,3156.1,0.316848]
[1720710121078,1.7546291,3156.5,3156.1,0.316848]
[1720710121377,1.7546291,3156.5,3156.0,10.45847]
[1720710121378,0.65771609,3156.3,3156.0,10.45847]
[1720710121750,0.65771609,3156.3,3156.0,7.29]
[1720710121955,0.65771609,3156.3,3156.2,3.0]
[1720710122146,4.26530474,3156.3,3156.2,3.0]
[1720710122384,9.74293307,3156.3,3156.2,3.0]
[1720710122575,8.23598235,3156.3,3156.2,3.0]
[1720710122894,8.23598068,3156.3,3156.2,3.0]
[1720710123350,8.23597893,3156.3,3156.2,3.0]
[1720710123552,8.23598074,3156.3,3156.2,3.0]
[1720710124254,13.37581444,3156.3,3156.2,3.0]
[1720710124453,13.37597674,3156.3,3156.2,3.0]
[1720710124648,12.2789933,3156.3,3156.2,3.0]
[1720710124863,12.2789933,3156.3,3156.2,2.12786379]
[1720710124864,14.87118813,3156.3,3156.2,2.12786379]
[1720710125150,15.18828813,3156.3,3156.2,1.36013629]
[1720710125502,15.18828813,3156.3,3155.4,7.29]
[1720710125503,5.56326,3155.5,3155.4,7.29]
[1720710125685,7.53387182,3155.5,3154.8,7.29]
[1720710125865,0.65708725,3155.1,3154.8,7.29]
[1720710126063,0.65708725,3155.1,3154.3,22.58019]
[1720710126268,1.75464919,3155.0,3154.2,2.2624]
[1720710126468,0.65708725,3155.0,3154.0,3.17055]
[1720710126672,0.65708725,3155.0,3154.3,3.17025]
[1720710127395,0.65708725,3155.1,3154.3,3.17025]
[1720710128001,0.65672484,3155.1,3154.1,6.440455]
[1720710128153,1.75439246,3155.0,3154.1,3.270055]
[1720710128492,3.82626484,3155.1,3154.2,3.17037]
[1720710128694,3.82626484,3155.1,3154.2,4.1314645]
[1720710129002,0.65672484,3155.1,3154.3,0.04672343]
[1720710129183,0.65672484,3155.2,3154.3,3.20094076]
[1720710129498,0.65672484,3155.8,3155.0,5.39349]
[1720710129667,2.4456,3156.0,3155.4,3.16916]
[1720710129668,0.65672484,3156.0,3155.4,3.16916]
[1720710129867,1.75412115,3156.3,3155.5,3.16905]
[1720710130192,1.09739631,3156.3,3155.6,3.16896]
[1720710130351,1.09739631,3156.3,3155.7,0.32017938]
[1720710130552,1.09739631,3156.3,3155.7,0.35876887]
[1720710130995,1.09739631,3156.3,3155.7,0.03858949]
[1720710131202,3.16838,3156.2,3155.4,0.275]
[1720710131503,0.656243,3156.2,3155.8,0.04217579]
[1720710131708,1.09739631,3156.3,3155.6,3.16894]
[1720710131996,1.09739631,3156.3,3155.8,3.16876]
[1720710132168,1.09739631,3156.3,3155.9,0.316876]
[1720710132369,1.09739631,3156.3,3156.0,3.16848]
[1720710132570,1.09739631,3156.3,3156.0,3.21061325]
[1720710132972,1.09739631,3156.3,3156.0,6.37909325]
[1720710133180,1.09739631,3156.3,3156.2,3.16836]
[1720710133381,1.09739631,3156.3,3156.2,6.65776933]
[1720710133585,1.09739631,3156.3,3156.2,6.69986005]
[1720710135411,1.09739631,3156.3,3156.2,9.86822005]
[1720710135612,1.09739631,3156.3,3156.2,15.92748005]
[1720710136322,1.09739631,3156.3,3156.2,15.94488476]
[1720710136888,1.09739631,3156.3,3156.2,12.77652476]
[1720710137384,1.09739631,3156.3,3156.2,9.60816476]
[1720710137722,1.09739631,3156.3,3156.2,9.05816476]
[1720710138013,1.09739631,3156.3,3156.2,9.05726132]
[1720710139273,1.09739631,3156.3,3156.2,12.22562132]
[1720710139479,1.09739631,3156.3,3156.2,12.77562132]
[1720710139900,1.09739631,3156.3,3156.2,12.71612589]
[1720710140961,1.09739631,3156.3,3156.2,9.54776589]
[1720710141253,1.09739631,3156.3,3156.2,3.48850589]
[1720710141455,2.2693,3157.1,3156.4,3.16816]
[1720710141456,0.65876973,3157.0,3156.4,3.16816]
[1720710141613,2.2693,3157.1,3156.4,3.16816]
[1720710141614,2.92806973,3157.1,3156.4,3.16816]
[1720710141809,1.05039216,3157.1,3156.6,3.16795]
[1720710142112,0.9881546,3157.2,3156.0,7.29]
[1720710142113,0.65876973,3157.0,3156.3,3.16826]
[1720710142450,0.65876973,3157.1,3156.3,3.16826]
[1720710142650,0.65876973,3157.0,3156.5,3.16799]
[1720710142822,0.65876973,3157.1,3156.5,3.16799]
[1720710143029,0.65876973,3157.0,3156.5,3.16799]
[1720710143222,0.82346216,3157.0,3156.0,7.29]
[1720710143424,0.65876973,3156.7,3155.8,3.15]
[1720710143653,0.65876973,3156.7,3155.9,3.16858]
[1720710143814,0.35876973,3156.7,3155.9,3.16858]
[1720710144009,4.1559146,3156.8,3155.9,3.16858]
[1720710144215,3.60443947,3156.9,3155.9,3.16858]
[1720710144216,1.76419001,3156.7,3156.0,3.1685]
[1720710144417,0.77603541,3156.7,3156.0,3.1685]
[1720710144749,0.9881546,3156.8,3155.9,3.16865]
[1720710144750,0.9881546,3156.6,3155.9,3.16865]
[1720710144959,0.9881546,3156.6,3155.8,3.15]
[1720710145111,0.9881546,3156.6,3156.0,3.16848]
[1720710145429,0.9881546,3156.8,3155.9,3.16858]
[1720710145815,0.9881546,3156.8,3156.1,3.16846]
[1720710146016,0.47572865,3156.8,3156.3,6.33645]
[1720710146249,0.16469243,3157.0,3156.3,6.33645]
[1720710146554,0.9881546,3157.1,3156.5,3.16801]
[1720710146859,0.9881546,3157.2,3156.5,3.16801]
[1720710147157,0.9881546,3157.2,3156.7,3.16778]
[1720710147469,0.9881546,3157.3,3156.7,3.16778]
[1720710147972,0.9881546,3157.4,3156.7,3.16778]
[1720710148142,1.44901401,3157.4,3156.7,3.16778]
[1720710148343,0.46085941,3157.4,3156.7,3.16778]
[1720710148577,3.62043947,3157.6,3157.1,3.16744]
[1720710148578,3.2910546,3157.6,3157.1,3.16744]
[1720710148741,0.9881546,3157.7,3157.1,6.33488]
[1720710148939,0.9881546,3157.8,3157.1,6.33488]
[1720710149754,0.9881546,3157.8,3157.1,3.16744]
[1720710150066,0.9881546,3157.7,3156.9,3.16758]
[1720710150248,0.9881546,3157.6,3156.7,13.62561]
[1720710150450,0.9881546,3157.6,3156.7,10.45782]
[1720710150786,3.16708,3157.5,3156.7,7.29]
[1720710151075,2.406,3157.3,3156.7,7.29]
[1720710151280,0.9881546,3157.2,3156.7,7.29]
[1720710151581,3.3941546,3157.3,3156.7,7.29]
[1720710151938,3.3941546,3157.3,3156.6,3.16795]
[1720710152475,2.406,3157.3,3156.6,3.16795]
[1720710152686,3.26709945,3157.3,3156.6,3.16795]
[1720710152837,3.26709945,3157.3,3156.4,3.16816]
[1720710153042,3.26709945,3157.3,3156.4,3.16811]
[1720710153275,3.26709945,3157.3,3156.4,3.16809]
[1720710153475,3.26709945,3157.3,3156.6,3.16793]
[1720710153779,1.08440244,3157.2,3156.5,3.16805]
[1720710154241,0.65887704,3157.1,3156.5,3.16805]
[1720710154437,1.08440244,3157.2,3156.3,3.1682]
[1720710154661,1.08440244,3157.2,3156.4,3.16815]
[1720710155986,0.65887704,3157.3,3156.6,3.16794]
[1720710156145,0.65887704,3157.5,3156.6,3.16794]